fUSD/lending_fUSD_20240521
["ID","MTS","AMOUNT","RATE_DAILY","PERIOD"]
[327679131,1716310240862,-543.00686333,0.00032876,6]
[327679132,1716310240871,-500.0,0.00032876,6]
[327679133,1716310240881,-500.0,0.00032876,6]
[327679134,1716310240891,-500.0,0.00032876,6]
[327679136,1716310240901,-500.0,0.00032876,6]
[327679137,1716310240910,-957.1,0.00032876,6]
[327679138,1716310240920,-669.72,0.00032876,6]
[327679139,1716310240929,-500.0,0.00032876,6]
[327679140,1716310240939,-500.0,0.00032876,6]
[327679141,1716310240948,-500.0,0.00032876,6]
[327679142,1716310240957,-500.0,0.00032876,6]
[327679143,1716310240967,-500.0,0.00032876,6]
[327679144,1716310240976,-500.0,0.00032876,6]
[327679145,1716310240985,-989.94,0.00032876,6]
[327679146,1716310240994,-500.0,0.00032876,6]
[327679147,1716310241003,-500.0,0.00032876,6]
[327679148,1716310241013,-651.98,0.00032876,6]
[327679149,1716310241023,-500.0,0.00032876,6]
[327679150,1716310241033,-819.46,0.00032876,6]
[327679151,1716310241042,-500.0,0.00032876,6]
[327679152,1716310241051,-500.0,0.00032876,6]
[327679153,1716310241060,-500.0,0.00032876,6]
[327679154,1716310241069,-604.55,0.00032876,6]
[327679155,1716310241079,-500.0,0.00032876,6]
[327679156,1716310241089,-500.0,0.00032876,6]
[327679157,1716310241099,-1046.22,0.00032876,6]
[327679158,1716310241110,-151.0,0.00032876,7]
[327679159,1716310241119,-500.0,0.00032876,6]
[327679160,1716310241129,-556.6,0.00032876,6]
[327679161,1716310241138,-1114.26,0.00032876,6]
[327679162,1716310241147,-744.63,0.00032876,6]
[327679163,1716310241157,-576.42,0.00032876,6]
[327679164,1716310241167,-1736.54,0.00032876,6]
[327679165,1716310241176,-639.76,0.00032876,6]
[327679166,1716310241186,-500.0,0.00032876,6]
[327679167,1716310241196,-720.08,0.00032876,6]
[327679168,1716310241206,-601.69,0.00032876,6]
[327679169,1716310241216,-610.03,0.00032876,6]
[327679170,1716310241226,-500.0,0.00032876,6]
[327679171,1716310241236,-500.0,0.00032876,6]
[327679172,1716310241245,-865.13,0.00032876,6]
[327679173,1716310241254,-736.96,0.00032876,6]
[327679174,1716310241263,-500.0,0.00032876,6]
[327679175,1716310241273,-692.4,0.00032876,6]
[327679176,1716310241284,-522.51088708,0.00032876,6]
[327679177,1716310241293,-937.46,0.00032876,6]
[327679178,1716310241303,-500.0,0.00032876,6]
[327679179,1716310241313,-500.0,0.00032876,6]
[327679180,1716310241322,-500.0,0.00032876,6]
[327679181,1716310241332,-606.16,0.00032876,6]
[327679182,1716310241341,-500.0,0.00032876,6]
[327679183,1716310241351,-682.49,0.00032876,6]
[327679184,1716310241360,-500.0,0.00032876,6]
[327679185,1716310241369,-1151.09,0.00032876,6]
[327679186,1716310241379,-500.0,0.00032876,6]
[327679187,1716310241388,-500.0,0.00032876,6]
[327679188,1716310241398,-1434.94,0.00032876,6]
[327679189,1716310241407,-500.0,0.00032876,6]
[327679190,1716310241416,-1574.61,0.00032876,6]
[327679191,1716310241426,-707.22,0.00032876,6]
[327679192,1716310241436,-1033.32,0.00032876,6]
[327679193,1716310241445,-662.46,0.00032876,6]
[327679194,1716310241455,-852.1,0.00032876,6]
[327679195,1716310241464,-541.20501953,0.00032876,6]
[327679196,1716310241474,-893.31,0.00032876,6]
[327679197,1716310241484,-500.0,0.00032876,6]
[327679198,1716310241496,-500.0,0.00032876,6]
[327679199,1716310241505,-500.0,0.00032876,6]
[327679200,1716310241514,-600.69,0.00032876,6]
[327679201,1716310241524,-1578.32,0.00032876,6]
[327679202,1716310241536,-502.08,0.00032876,6]
[327679203,1716310241546,-1128.91,0.00032876,6]
[327679204,1716310241556,-724.88,0.00032876,6]
[327679205,1716310241565,-500.0,0.00032876,6]
[327679206,1716310241574,-500.0,0.00032876,6]
[327679207,1716310241584,-724.57,0.00032876,6]
[327679208,1716310241594,-500.0,0.00032876,6]
[327679209,1716310241603,-500.0,0.00032876,6]
[327679210,1716310241612,-615.42,0.00032876,6]
[327679211,1716310241622,-808.87,0.00032876,6]
[327679212,1716310241631,-500.0,0.00032876,6]
[327679213,1716310241640,-1004.21,0.00032876,6]
[327679214,1716310241650,-500.0,0.00032876,6]
[327679215,1716310241659,-727.3,0.00032876,6]
[327679216,1716310241669,-500.0,0.00032876,6]
[327679217,1716310241678,-973.9,0.00032876,6]
[327679218,1716310241688,-693.54,0.00032876,6]
[327679219,1716310241697,-500.0,0.00032876,6]
[327679220,1716310241707,-500.0,0.00032876,6]
[327679221,1716310241716,-500.0,0.00032876,6]
[327679222,1716310241725,-500.0,0.00032876,6]
[327679223,1716310241735,-500.0,0.00032876,6]
[327679224,1716310241745,-500.0,0.00032876,6]
[327679225,1716310241754,-500.0,0.00032876,6]
[327679226,1716310241764,-500.0,0.00032876,6]
[327679227,1716310241774,-500.0,0.00032876,6]
[327679228,1716310241787,-500.0,0.00032876,6]
[327679229,1716310241797,-500.0,0.00032876,6]
[327679230,1716310241806,-659.39,0.00032876,6]
[327679231,1716310241815,-500.0,0.00032876,6]
[327679232,1716310241824,-151.0,0.00032876,7]
[327679233,1716310241834,-1386.46,0.00032876,6]
[327679234,1716310241843,-657.24,0.00032876,6]
[327679235,1716310241852,-994.66,0.00032876,6]
[327679236,1716310241863,-554.33,0.00032876,6]
[327679237,1716310241871,-504.3213866,0.00032876,6]
[327679238,1716310241881,-500.0,0.00032876,6]
[327679239,1716310241890,-500.0,0.00032876,6]
[327679240,1716310241899,-890.79,0.00032876,6]
[327679241,1716310241908,-500.0,0.00032876,6]
[327679242,1716310241918,-588.54,0.00032876,6]
[327679243,1716310241927,-500.0,0.00032876,6]
[327679244,1716310241936,-151.0,0.00032876,7]
[327679245,1716310241945,-500.0,0.00032876,6]
[327679246,1716310241954,-500.0,0.00032876,6]
[327679247,1716310241964,-1170.73,0.00032876,6]
[327679248,1716310241973,-151.0,0.00032876,7]
[327679249,1716310241982,-595.89,0.00032876,6]
[327679250,1716310241991,-150.0,0.00032876,6]
[327679251,1716310242001,-500.0,0.00032876,6]
[327679252,1716310242010,-500.0,0.00032876,6]
[327679253,1716310242019,-500.0,0.00032876,6]
[327679254,1716310242029,-694.92,0.00032876,6]
[327679255,1716310242040,-840.55,0.00032876,6]
[327679256,1716310242049,-500.0,0.00032876,6]
[327679257,1716310242058,-500.0,0.00032876,6]
[327679258,1716310242067,-1094.49,0.00032876,6]
[327679259,1716310242076,-516.39913848,0.00032876,6]
[327679260,1716310242085,-500.0,0.00032876,6]
[327679261,1716310242094,-595.8,0.00032876,6]
[327679262,1716310242103,-2589.42,0.00032876,6]
[327679263,1716310242112,-151.0,0.00032876,7]
[327679264,1716310242122,-5977.44,0.00032876,6]
[327679265,1716310242131,-500.0,0.00032876,6]
[327679266,1716310242140,-661.77,0.00032876,6]
[327679267,1716310242149,-936.53,0.00032876,6]
[327679268,1716310242159,-500.0,0.00032876,6]
[327679269,1716310242168,-1070.52,0.00032876,6]
[327679270,1716310242178,-500.0,0.00032876,6]
[327679271,1716310242187,-676.63,0.00032876,6]
[327679272,1716310242197,-412.217388,0.00032876,7]
[327679273,1716310242206,-151.0,0.00032876,7]
[327679274,1716310242217,-1465.95,0.00032876,6]
[327679275,1716310242226,-239.31998716,0.00032876,6]
[327679276,1716310242236,-154.19536797,0.00032876,6]
[327679277,1716310242245,-412.217388,0.00032876,7]
[327679278,1716310242254,-18879.25,0.00032876,6]
[327679279,1716310242264,-500.0,0.00032876,6]
[327679280,1716310242273,-754.26,0.00032876,6]
[327679281,1716310242282,-500.0,0.00032876,6]
[327679282,1716310242292,-500.0,0.00032876,6]
[327679283,1716310242301,-500.0,0.00032876,6]
[327679284,1716310242314,-151.0,0.00032876,7]
[327679285,1716310242324,-820.19,0.00032876,6]
[327679286,1716310242334,-500.0,0.00032876,6]
[327679287,1716310242343,-500.0,0.00032876,6]
[327679288,1716310242352,-1960.62,0.00032876,6]
[327679289,1716310242361,-500.0,0.00032876,6]
[327679290,1716310242371,-478.75469328,0.00032876,6]
[327679291,1716310242380,-997.78,0.00032876,6]
[327679292,1716310242389,-500.0,0.00032876,6]
[327679293,1716310242399,-500.0,0.00032876,6]
[327679294,1716310242408,-500.0,0.00032876,6]
[327679295,1716310242418,-935.22,0.00032876,6]
[327679296,1716310242427,-6060.34,0.00032876,6]
[327679297,1716310242436,-500.0,0.00032876,6]
[327679298,1716310242445,-500.0,0.00032876,6]
[327679299,1716310242456,-2276.33,0.00032876,6]
[327679300,1716310242465,-1260.2,0.00032876,6]
[327679301,1716310242477,-151.0,0.00032876,7]
[327679302,1716310242486,-500.0,0.00032876,6]
[327679303,1716310242496,-1610.22,0.00032876,6]
[327679304,1716310242505,-218.63,0.00032876,6]
[327679305,1716310242514,-13976.32,0.00032876,6]
[327679306,1716310242523,-1056.43,0.00032876,6]
[327679307,1716310242533,-500.0,0.00032876,6]
[327679308,1716310242543,-500.0,0.00032876,6]
[327679309,1716310242552,-500.0,0.00032876,6]
[327679310,1716310242561,-1807.53,0.00032876,6]
[327679311,1716310242571,-500.0,0.00032876,6]
[327679312,1716310242580,-2068.84,0.00032876,6]
[327679313,1716310242590,-1151.86,0.00032876,6]
[327679314,1716310242599,-500.0,0.00032876,6]
[327679315,1716310242608,-500.0,0.00032876,6]
[327679316,1716310242617,-821.97,0.00032876,6]
[327679317,1716310242626,-500.0,0.00032876,6]
[327679318,1716310242635,-500.0,0.00032876,6]
[327679319,1716310242645,-5553.31,0.00032876,6]
[327679320,1716310242654,-1224.47,0.00032876,6]
[327679321,1716310242663,-500.0,0.00032876,6]
[327679322,1716310242673,-3266.69,0.00032876,6]
[327679323,1716310242682,-890.74,0.00032876,6]
[327679324,1716310242691,-7687.98,0.00032876,6]
[327679325,1716310242700,-507.5,0.00032876,6]
[327679326,1716310242709,-3263.74,0.00032876,6]
[327679327,1716310242718,-500.0,0.00032876,6]
[327679328,1716310242728,-500.0,0.00032876,6]
[327679329,1716310242737,-1607.16,0.00032876,6]
[327679330,1716310242747,-918.56,0.00032876,6]
[327679331,1716310242756,-3089.71,0.00032876,6]
[327679332,1716310242766,-500.0,0.00032876,6]
[327679333,1716310242780,-1299.13,0.00032876,6]
[327679335,1716310242791,-500.0,0.00032876,6]
[327679336,1716310242801,-650.38,0.00032876,6]
[327679337,1716310242810,-765.99,0.00032876,6]
[327679338,1716310242821,-2450.25,0.00032876,6]
[327679339,1716310242830,-434.96673331,0.00032876,6]
[327679340,1716310242839,-1232.61,0.00032876,6]
[327679341,1716310242849,-1084.99,0.00032876,6]
[327679342,1716310242859,-500.0,0.00032876,6]
[327679343,1716310242869,-4731.98,0.00032876,6]
[327679344,1716310242878,-500.0,0.00032876,6]
[327679345,1716310242887,-500.0,0.00032876,6]
[327679346,1716310242897,-21380.41,0.00032876,6]
[327679347,1716310242907,-895.39,0.00032876,6]
[327679348,1716310242917,-500.0,0.00032876,6]
[327679351,1716310242926,-539.2,0.00032876,6]
[327679353,1716310242935,-1036.27,0.00032876,6]
[327679355,1716310242944,-683.78,0.00032876,6]
[327679357,1716310242953,-500.0,0.00032876,6]
[327679359,1716310242962,-1941.66,0.00032876,6]
[327679360,1716310242972,-4296.07,0.00032876,6]
[327679361,1716310242982,-500.0,0.00032876,6]
[327679362,1716310242992,-586.35,0.00032876,6]
[327679363,1716310243001,-678.59,0.00032876,6]
[327679364,1716310243011,-512.0,0.00032876,6]
[327679365,1716310243020,-151.0,0.00032876,7]
[327679366,1716310243029,-500.0,0.00032876,6]
[327679367,1716310243042,-1727.6,0.00032876,6]
[327679368,1716310243051,-630.95,0.00032876,6]
[327679372,1716310243061,-965.03,0.00032876,6]
[327679376,1716310243071,-500.0,0.00032876,6]
[327679379,1716310243080,-500.0,0.00032876,6]
[327679381,1716310243090,-500.0,0.00032876,6]
[327679383,1716310243099,-2908.78,0.00032876,6]
[327679385,1716310243109,-500.0,0.00032876,6]
[327679386,1716310243118,-758.03,0.00032876,6]
[327679387,1716310243127,-500.0,0.00032876,6]
[327679388,1716310243137,-802.37,0.00032876,6]
[327679389,1716310243146,-500.0,0.00032876,6]
[327679390,1716310243156,-500.0,0.00032876,6]
[327679391,1716310243166,-500.0,0.00032876,6]
[327679392,1716310243176,-1401.21,0.00032876,6]
[327679393,1716310243185,-1020.55,0.00032876,6]
[327679394,1716310243195,-500.0,0.00032876,6]
[327679395,1716310243204,-1944.57,0.00032876,6]
[327679396,1716310243213,-536.04,0.00032876,6]
[327679397,1716310243224,-1348.06,0.00032876,6]
[327679398,1716310243233,-8837.25,0.00032876,6]
[327679399,1716310243242,-500.0,0.00032876,6]
[327679400,1716310243251,-501.85,0.00032876,6]
[327679401,1716310243261,-500.0,0.00032876,6]
[327679402,1716310243279,-157.14,0.00032876,6]
[327679403,1716310243291,-500.0,0.00032876,6]
[327679404,1716310243300,-1885.64,0.00032876,6]
[327679405,1716310243309,-581.62,0.00032876,6]
[327679406,1716310243319,-655.31,0.00032876,6]
[327679407,1716310243328,-1476.86,0.00032876,6]
[327679408,1716310243338,-910.55,0.00032876,6]
[327679409,1716310243347,-1978.37,0.00032876,6]
[327679410,1716310243356,-500.0,0.00032876,6]
[327679411,1716310243365,-882.2,0.00032876,6]
[327679412,1716310243374,-500.0,0.00032876,6]
[327679413,1716310243385,-500.0,0.00032876,6]
[327679414,1716310243394,-1278.74,0.00032876,6]
[327679415,1716310243404,-266.35463502,0.00032876,6]
[327679416,1716310243414,-500.0,0.00032876,6]
[327679417,1716310243424,-711.66,0.00032876,6]
[327679418,1716310243433,-783.91,0.00032876,6]
[327679419,1716310243443,-5848.49,0.00032876,6]
[327679420,1716310243453,-500.0,0.00032876,6]
[327679421,1716310243462,-500.0,0.00032876,6]
[327679422,1716310243472,-500.0,0.00032876,6]
[327679423,1716310243482,-1121.0,0.00032876,6]
[327679424,1716310243491,-151.0,0.00032876,7]
[327679425,1716310243500,-1331.51,0.00032876,6]
[327679426,1716310243510,-500.0,0.00032876,6]
[327679427,1716310243520,-846.95,0.00032876,6]
[327679428,1716310243529,-500.0,0.00032876,6]
[327679429,1716310243540,-159.346036,0.00032876,7]
[327679430,1716310243550,-500.0,0.00032876,6]
[327679431,1716310243559,-151.0,0.00032876,7]
[327679432,1716310243568,-346.2,0.00032876,6]
[327679433,1716310243578,-1114.91,0.00032876,6]
[327679434,1716310243588,-500.0,0.00032876,6]
[327679435,1716310243597,-566.79,0.00032876,6]
[327679436,1716310243607,-1016.17,0.00032876,6]
[327679437,1716310243616,-500.0,0.00032876,6]
[327679439,1716310243625,-500.0,0.00032876,6]
[327679440,1716310243635,-500.0,0.00032876,6]
[327679442,1716310243645,-1544.31,0.00032876,6]
[327679444,1716310243654,-38548.95,0.00032876,6]
[327679445,1716310243664,-159.346036,0.00032876,7]
[327679447,1716310243673,-500.0,0.00032876,6]
[327679449,1716310243683,-461.32264887,0.00032876,6]
[327679450,1716310243692,-500.0,0.00032876,6]
[327679452,1716310243701,-1131.67,0.00032876,6]
[327679453,1716310243710,-753.1,0.00032876,6]
[327679455,1716310243721,-500.0,0.00032876,6]
[327679457,1716310243730,-500.0,0.00032876,6]
[327679458,1716310243739,-694.74,0.00032876,6]
[327679460,1716310243749,-519.57474744,0.00032876,6]
[327679461,1716310243758,-500.0,0.00032876,6]
[327679462,1716310243767,-509.16,0.00032876,6]
[327679463,1716310243777,-569.1,0.00032876,6]
[327679465,1716310243790,-1945.58,0.00032876,6]
[327679466,1716310243799,-500.0,0.00032876,6]
[327679468,1716310243809,-1067.55,0.00032876,6]
[327679469,1716310243818,-500.0,0.00032876,6]
[327679470,1716310243828,-500.0,0.00032876,6]
[327679472,1716310243837,-156.758012,0.00032876,7]
[327679473,1716310243847,-9511.22,0.00032876,6]
[327679475,1716310243856,-1484.0,0.00032876,6]
[327679477,1716310243866,-500.0,0.00032876,6]
[327679478,1716310243875,-6712.14,0.00032876,6]
[327679480,1716310243884,-500.0,0.00032876,6]
[327679481,1716310243893,-151.0,0.00032876,7]
[327679483,1716310243902,-613.91,0.00032876,6]
[327679484,1716310243913,-500.0,0.00032876,6]
[327679486,1716310243922,-823.75,0.00032876,6]
[327679488,1716310243932,-500.0,0.00032876,6]
[327679489,1716310243942,-500.0,0.00032876,6]
[327679491,1716310243951,-4130.26,0.00032876,6]
[327679493,1716310243962,-500.0,0.00032876,6]
[327679494,1716310243972,-1377.92,0.00032876,6]
[327679496,1716310243982,-3660.53,0.00032876,6]
[327679498,1716310243991,-505.03974552,0.00032876,6]
[327679499,1716310244001,-302.45223631,0.00032876,6]
[327679501,1716310244010,-1565.62,0.00032876,6]
[327679503,1716310244019,-549.12619672,0.00032876,6]
[327679504,1716310244029,-1325.46,0.00032876,6]
[327679506,1716310244040,-500.0,0.00032876,6]
[327679508,1716310244050,-509.06,0.00032876,6]
[327679509,1716310244061,-510.81,0.00032876,6]
[327679511,1716310244071,-500.0,0.00032876,6]
[327679513,1716310244080,-4937.41,0.00032876,6]
[327679514,1716310244090,-1058.46,0.00032876,6]
[327679516,1716310244100,-500.0,0.00032876,6]
[327679518,1716310244110,-500.0,0.00032876,6]
[327679519,1716310244119,-500.0,0.00032876,6]
[327679521,1716310244128,-2629.43,0.00032876,6]
[327679522,1716310244138,-644.29,0.00032876,6]
[327679523,1716310244148,-500.0,0.00032876,6]
[327679524,1716310244159,-500.0,0.00032876,6]
[327679526,1716310244169,-1522.3,0.00032876,6]
[327679527,1716310244178,-552.09,0.00032876,6]
[327679529,1716310244188,-1295.48,0.00032876,6]
[327679530,1716310244197,-500.0,0.00032876,6]
[327679532,1716310244207,-329.05436091,0.00032876,6]
[327679534,1716310244216,-500.0,0.00032876,6]
[327679535,1716310244226,-547.67,0.00032876,6]
[327679537,1716310244235,-500.0,0.00032876,6]
[327679539,1716310244245,-424.5,0.00032876,6]
[327679541,1716310244255,-500.0,0.00032876,6]
[327679542,1716310244265,-500.0,0.00032876,6]
[327679544,1716310244275,-500.0,0.00032876,6]
[327679545,1716310244284,-500.0,0.00032876,6]
[327679547,1716310244294,-626.08,0.00032876,6]
[327679548,1716310244304,-500.0,0.00032876,6]
[327679549,1716310244314,-500.0,0.00032876,6]
[327679550,1716310244323,-500.0,0.00032876,6]
[327679551,1716310244333,-745.16,0.00032876,6]
[327679552,1716310244343,-500.0,0.00032876,6]
[327679553,1716310244353,-683.66,0.00032876,6]
[327679554,1716310244364,-500.0,0.00032876,6]
[327679555,1716310244373,-1813.8,0.00032876,6]
[327679556,1716310244383,-995.1,0.00032876,6]
[327679557,1716310244394,-500.0,0.00032876,6]
[327679558,1716310244404,-518.11,0.00032876,6]
[327679559,1716310244415,-3003.38,0.00032876,6]
[327679560,1716310244425,-151.0,0.00032876,7]
[327679561,1716310244435,-763.7,0.00032876,6]
[327679562,1716310244446,-500.0,0.00032876,6]
[327679563,1716310244455,-2948.95,0.00032876,6]
[327679564,1716310244465,-524.63,0.00032876,6]
[327679565,1716310244474,-500.0,0.00032876,6]
[327679566,1716310244483,-500.0,0.00032876,6]
[327679567,1716310244493,-500.0,0.00032876,6]
[327679568,1716310244502,-3228.02,0.00032876,6]
[327679569,1716310244512,-500.0,0.00032876,6]
[327679570,1716310244522,-500.0,0.00032876,6]
[327679571,1716310244533,-500.0,0.00032876,6]
[327679572,1716310244543,-1594.29,0.00032876,6]
[327679573,1716310244553,-18288.51,0.00032876,6]
[327679574,1716310244563,-151.0,0.00032876,7]
[327679575,1716310244573,-2878.14,0.00032876,6]
[327679576,1716310244583,-500.0,0.00032876,6]
[327679577,1716310244592,-1285.92,0.00032876,6]
[327679578,1716310244602,-500.0,0.00032876,6]
[327679579,1716310244612,-516.9234155,0.00032876,6]
[327679580,1716310244623,-1141.76,0.00032876,6]
[327679581,1716310244633,-2751.56,0.00032876,6]
[327679582,1716310244643,-151.0,0.00032876,7]
[327679583,1716310244654,-528.91,0.00032876,6]
[327679584,1716310244664,-1442.73,0.00032876,6]
[327679585,1716310244674,-500.0,0.00032876,6]
[327679586,1716310244684,-1961.85,0.00032876,6]
[327679587,1716310244696,-500.0,0.00032876,6]
[327679588,1716310244706,-500.0,0.00032876,6]
[327679589,1716310244717,-1802.01,0.00032876,6]
[327679590,1716310244726,-219.27458158,0.00032876,6]
[327679591,1716310244736,-1802.71,0.00032876,6]
[327679592,1716310244746,-555.45,0.00032876,6]
[327679593,1716310244757,-925.91,0.00032876,6]
[327679594,1716310244767,-215.019449,0.00032876,7]
[327679595,1716310244781,-1121.17,0.00032876,6]
[327679596,1716310244792,-856.42,0.00032876,6]
[327679597,1716310244801,-1049.49,0.00032876,6]
[327679598,1716310244811,-500.0,0.00032876,6]
[327679599,1716310244823,-84.84106869,0.00032876,6]
[327679600,1716310244858,-2862.98893131,0.00032876,6]
[327679601,1716310244869,-500.0,0.00032876,6]
[327679602,1716310244879,-2504.01,0.00032876,6]
[327679603,1716310244889,-1997.65,0.00032876,6]
[327679604,1716310244899,-1522.76,0.00032876,6]
[327679605,1716310244909,-500.0,0.00032876,6]
[327679606,1716310244919,-500.0,0.00032876,6]
[327679607,1716310244928,-1912.11,0.00032876,6]
[327679608,1716310244938,-880.84,0.00032876,6]
[327679609,1716310244948,-790.84,0.00032876,6]
[327679610,1716310244957,-500.0,0.00032876,6]
[327679611,1716310244968,-521.0997461,0.00032876,6]
[327679612,1716310244978,-500.0,0.00032876,6]
[327679613,1716310244987,-500.0,0.00032876,6]
[327679614,1716310244998,-3000.96,0.00032876,6]
[327679615,1716310245007,-500.0,0.00032876,6]
[327679616,1716310245019,-1164.86,0.00032876,6]
[327679617,1716310245028,-500.0,0.00032876,6]
[327679618,1716310245040,-500.0,0.00032876,6]
[327679619,1716310245049,-500.0,0.00032876,6]
[327679620,1716310245059,-2787.75,0.00032876,6]
[327679621,1716310245069,-500.0,0.00032876,2]
[327679622,1716310245078,-643.98,0.00032876,6]
[327679623,1716310245088,-500.0,0.00032876,6]
[327679624,1716310245098,-537.12,0.00032876,6]
[327679625,1716310245107,-500.0,0.00032876,6]
[327679626,1716310245117,-186.43515123,0.00032876,6]
[327679627,1716310245126,-2450.63,0.00032876,6]
[327679628,1716310245136,-151.0,0.00032876,7]
[327679629,1716310245146,-1681.79,0.00032876,6]
[327679630,1716310245155,-500.0,0.00032876,6]
[327679631,1716310245164,-500.0,0.00032876,6]
[327679632,1716310245174,-1378.25,0.00032876,6]
[327679633,1716310245184,-879.68,0.00032876,6]
[327679634,1716310245194,-507.25862728,0.00032876,6]
[327679635,1716310245203,-500.0,0.00032876,6]
[327679636,1716310245213,-151.0,0.00032876,7]
[327679637,1716310245223,-655.15,0.00032876,6]
[327679638,1716310245232,-500.0,0.00032876,6]
[327679639,1716310245241,-500.0,0.00032876,6]
[327679640,1716310245251,-1237.76,0.00032876,6]
[327679641,1716310245260,-151.0,0.00032876,7]
[327679642,1716310245280,-500.0,0.00032876,6]
[327679643,1716310245291,-500.0,0.00032876,6]
[327679644,1716310245301,-3113.72,0.00032876,6]
[327679645,1716310245310,-610.84,0.00032876,6]
[327679646,1716310245320,-500.0,0.00032876,6]
[327679647,1716310245329,-4986.61,0.00032876,6]
[327679648,1716310245339,-500.0,0.00032876,6]
[327679649,1716310245349,-500.0,0.00032876,6]
[327679650,1716310245358,-500.0,0.00032876,6]
[327679651,1716310245368,-591.15,0.00032876,6]
[327679652,1716310245378,-572.88,0.00032876,6]
[327679653,1716310245387,-1065.19,0.00032876,6]
[327679654,1716310245397,-500.0,0.00032876,6]
[327679655,1716310245407,-151.0,0.00032876,7]
[327679656,1716310245417,-500.0,0.00032876,6]
[327679657,1716310245427,-5231.58,0.00032876,6]
[327679658,1716310245436,-4821.01,0.00032876,6]
[327679659,1716310245446,-3090.66,0.00032876,6]
[327679660,1716310245456,-772.0,0.00032876,6]
[327679661,1716310245466,-700.04,0.00032876,6]
[327679662,1716310245476,-151.0,0.00032876,7]
[327679663,1716310245486,-1549.92700921,0.0003288,2]
[327679664,1716310245496,-155.25430839,0.00032978,4]
[327679665,1716310245506,-162.01712187,0.00032978,4]
[327679666,1716310245516,-204.84407215,0.00032978,4]
[327679667,1716310245526,-281.81474394,0.00032978,4]
[327679668,1716310245536,-2596.0710139,0.00032979,4]
[327679669,1716310245546,-2593.90078703,0.0003298,14]
[327679670,1716310245580,-1121.01309545,0.0003298,14]
[327679671,1716310245608,-842.295,0.0003298,14]
[327679734,1716310246127,-500.0,0.00032876,6]
[327679760,1716310246394,-151.0,0.00032876,7]
[327679762,1716310246404,-193.96821136,0.00032876,6]
[327679765,1716310246428,-306.03178864,0.00032876,6]
[327679767,1716310246438,-106.15655447,0.00032876,7]
[327679772,1716310246458,-44.84344553,0.00032876,7]
[327679775,1716310246467,-68372.66928781,0.0003298,14]
[327679782,1716310246570,-496.16059,0.0003298,14]
[327679783,1716310246888,-369.9308889,0.0003298,14]
[327679784,1716310246904,-147343.49227565,0.0003298,14]
[327679785,1716310246931,-1024.90486174,0.0003298,14]
[327679787,1716310246942,-869.64647812,0.0003298,14]
[327679805,1716310247548,-888.50000003,0.00024898,2]
[327679806,1716310247559,-294.14994472,0.00024898,2]
[327679807,1716310247579,-1104.73378901,0.00024898,2]
[327679808,1716310247591,-3241.34898887,0.00024898,2]
[327679809,1716310247687,-1699.86851811,0.00024898,2]
[327679810,1716310247699,-297.95376087,0.00024898,2]